fUSD/lending_fUSD_20250204
["ID","MTS","AMOUNT","RATE_DAILY","PERIOD"]
[351619692,1738667441583,-500.0,9.034e-05,2]
[351619693,1738667441593,-546.1,9.034e-05,2]
[351619694,1738667441603,-505.32,9.034e-05,2]
[351619695,1738667441612,-500.0,9.034e-05,2]
[351619696,1738667441621,-500.0,9.034e-05,2]
[351619697,1738667441631,-500.0,9.034e-05,2]
[351619698,1738667441640,-527.43,9.034e-05,2]
[351619699,1738667441649,-500.0,9.034e-05,2]
[351619700,1738667441659,-646.54,9.034e-05,2]
[351619701,1738667441669,-500.0,9.034e-05,2]
[351619702,1738667441678,-500.0,9.034e-05,2]
[351619703,1738667441688,-546.74,9.034e-05,2]
[351619704,1738667441698,-500.0,9.034e-05,2]
[351619705,1738667441709,-500.0,9.034e-05,2]
[351619706,1738667441718,-1016.87,9.034e-05,2]
[351619707,1738667441727,-500.0,9.034e-05,2]
[351619708,1738667441737,-512.81,9.034e-05,2]
[351619709,1738667441747,-560.89,9.034e-05,2]
[351619710,1738667441756,-887.96,9.034e-05,2]
[351619711,1738667441765,-806.65,9.034e-05,2]
[351619712,1738667441775,-916.85,9.034e-05,2]
[351619713,1738667441784,-656.328528,9.034e-05,2]
[351619714,1738667441794,-500.0,9.034e-05,2]
[351619715,1738667441803,-674.34,9.034e-05,2]
[351619716,1738667441814,-500.0,9.034e-05,2]
[351619717,1738667441824,-830.84,9.034e-05,2]
[351619718,1738667441833,-500.0,9.034e-05,2]
[351619719,1738667441843,-735.59,9.034e-05,2]
[351619720,1738667441852,-500.0,9.034e-05,2]
[351619721,1738667441861,-1020.31,9.034e-05,2]
[351619722,1738667441871,-678.3,9.034e-05,2]
[351619723,1738667441881,-500.0,9.034e-05,2]
[351619724,1738667441890,-670.662005,9.034e-05,2]
[351619725,1738667441900,-761.16,9.034e-05,2]
[351619726,1738667441909,-1191.92,9.034e-05,2]
[351619727,1738667441919,-842.81,9.034e-05,2]
[351619728,1738667441928,-500.0,9.034e-05,2]
[351619729,1738667441937,-501.19,9.034e-05,2]
[351619730,1738667441947,-500.0,9.034e-05,2]
[351619731,1738667441957,-1436.96,9.034e-05,2]
[351619732,1738667441967,-1098.86,9.034e-05,2]
[351619733,1738667441976,-1587.17,9.034e-05,2]
[351619734,1738667441985,-555.35,9.034e-05,2]
[351619735,1738667441995,-3586.6,9.034e-05,2]
[351619736,1738667442003,-826.45,9.034e-05,2]
[351619737,1738667442013,-874.52,9.034e-05,2]
[351619738,1738667442024,-735.1,9.034e-05,2]
[351619739,1738667442033,-500.0,9.034e-05,2]
[351619740,1738667442042,-1079.23,9.034e-05,2]
[351619741,1738667442051,-1133.01,9.034e-05,2]
[351619742,1738667442059,-1605.3,9.034e-05,2]
[351619743,1738667442069,-566.45,9.034e-05,2]
[351619744,1738667442078,-1195.29,9.034e-05,2]
[351619745,1738667442087,-528.44,9.034e-05,2]
[351619746,1738667442097,-1670.85,9.034e-05,2]
[351619747,1738667442107,-1128.85,9.034e-05,2]
[351619748,1738667442116,-2377.98,9.034e-05,2]
[351619749,1738667442125,-500.0,9.034e-05,2]
[351619750,1738667442135,-742.14,9.034e-05,2]
[351619751,1738667442144,-704.68,9.034e-05,2]
[351619752,1738667442153,-500.0,9.034e-05,2]
[351619753,1738667442163,-1562.25,9.034e-05,2]
[351619754,1738667442173,-996.25,9.034e-05,2]
[351619755,1738667442182,-752.83,9.034e-05,2]
[351619756,1738667442191,-747.44,9.034e-05,2]
[351619757,1738667442200,-1009.27,9.034e-05,2]
[351619758,1738667442211,-950.45,9.034e-05,2]
[351619759,1738667442220,-1760.82,9.034e-05,2]
[351619760,1738667442229,-579.06,9.034e-05,2]
[351619761,1738667442238,-1336.98,9.034e-05,2]
[351619762,1738667442246,-1190.29,9.034e-05,2]
[351619763,1738667442255,-1037.35,9.034e-05,2]
[351619764,1738667442265,-500.0,9.034e-05,2]
[351619765,1738667442274,-975.36,9.034e-05,2]
[351619766,1738667442283,-1052.38,9.034e-05,2]
[351619767,1738667442292,-512.7,9.034e-05,2]
[351619768,1738667442301,-500.0,9.034e-05,2]
[351619769,1738667442310,-542.91,9.034e-05,2]
[351619770,1738667442319,-1172.6,9.034e-05,2]
[351619771,1738667442328,-500.0,9.034e-05,2]
[351619772,1738667442337,-553.74,9.034e-05,2]
[351619773,1738667442346,-893.18,9.034e-05,2]
[351619774,1738667442354,-619.3,9.034e-05,2]
[351619775,1738667442363,-793.87,9.034e-05,2]
[351619776,1738667442372,-900.81,9.034e-05,2]
[351619777,1738667442381,-567.81,9.034e-05,2]
[351619778,1738667442390,-500.0,9.034e-05,2]
[351619779,1738667442399,-608.06,9.034e-05,2]
[351619780,1738667442408,-542.59,9.034e-05,2]
[351619781,1738667442417,-613.31975325,9.035e-05,2]
[351619782,1738667442425,-500.0,9.035e-05,2]
[351619783,1738667442434,-500.0,9.035e-05,2]
[351619784,1738667442444,-500.0,9.035e-05,2]
[351619785,1738667442454,-500.0,9.035e-05,2]
[351619786,1738667442463,-500.0,9.035e-05,2]
[351619787,1738667442473,-649.36,9.035e-05,2]
[351619788,1738667442482,-500.0,9.035e-05,2]
[351619789,1738667442491,-500.0,9.035e-05,2]
[351619790,1738667442500,-500.0,9.035e-05,2]
[351619791,1738667442511,-500.0,9.035e-05,2]
[351619792,1738667442522,-500.0,9.035e-05,2]
[351619793,1738667442531,-500.0,9.035e-05,2]
[351619795,1738667442540,-664.96,9.035e-05,2]
[351619796,1738667442551,-500.0,9.035e-05,2]
[351619797,1738667442559,-500.0,9.035e-05,2]
[351619798,1738667442569,-500.0,9.035e-05,2]
[351619799,1738667442578,-500.0,9.035e-05,2]
[351619800,1738667442587,-500.0,9.035e-05,2]
[351619801,1738667442597,-500.0,9.035e-05,2]
[351619802,1738667442606,-500.0,9.035e-05,2]
[351619803,1738667442615,-500.0,9.035e-05,2]
[351619804,1738667442624,-500.0,9.035e-05,2]
[351619805,1738667442640,-500.0,9.035e-05,2]
[351619808,1738667442649,-500.0,9.035e-05,2]
[351619811,1738667442658,-595.16,9.035e-05,2]
[351619814,1738667442666,-568.57,9.035e-05,2]
[351619817,1738667442676,-500.0,9.035e-05,2]
[351619820,1738667442685,-500.0,9.035e-05,2]
[351619823,1738667442694,-500.0,9.035e-05,2]
[351619826,1738667442704,-789.04,9.035e-05,2]
[351619829,1738667442713,-510.07006536,9.035e-05,2]
[351619832,1738667442722,-500.0,9.035e-05,2]
[351619834,1738667442732,-500.0,9.035e-05,2]
[351619837,1738667442741,-500.0,9.035e-05,2]
[351619840,1738667442750,-500.0,9.035e-05,2]
[351619842,1738667442759,-500.0,9.035e-05,2]
[351619846,1738667442769,-500.0,9.035e-05,2]
[351619848,1738667442779,-500.0,9.035e-05,2]
[351619850,1738667442788,-500.0,9.035e-05,2]
[351619851,1738667442798,-500.0,9.035e-05,2]
[351619852,1738667442807,-500.0,9.035e-05,2]
[351619853,1738667442816,-500.0,9.035e-05,2]
[351619854,1738667442825,-500.0,9.035e-05,2]
[351619855,1738667442834,-500.0,9.035e-05,2]
[351619856,1738667442844,-500.0,9.035e-05,2]
[351619857,1738667442853,-544.55,9.035e-05,2]
[351619858,1738667442862,-504.41,9.035e-05,2]
[351619859,1738667442872,-502.21,9.035e-05,2]
[351619860,1738667442882,-500.0,9.035e-05,2]
[351619861,1738667442891,-500.0,9.035e-05,2]
[351619862,1738667442900,-706.43,9.035e-05,2]
[351619863,1738667442910,-500.0,9.035e-05,2]
[351619864,1738667442920,-500.0,9.035e-05,2]
[351619865,1738667442929,-500.0,9.035e-05,2]
[351619866,1738667442938,-500.0,9.035e-05,2]
[351619867,1738667442948,-500.0,9.035e-05,2]
[351619868,1738667442958,-550.12102332,9.035e-05,2]
[351619869,1738667442967,-500.0,9.035e-05,2]
[351619870,1738667442976,-500.0,9.035e-05,2]
[351619871,1738667442985,-500.0,9.035e-05,2]
[351619872,1738667442994,-500.0,9.035e-05,2]
[351619873,1738667443003,-500.0,9.035e-05,2]
[351619874,1738667443012,-537.06924038,9.035e-05,2]
[351619875,1738667443021,-500.0,9.035e-05,2]
[351619876,1738667443030,-500.0,9.035e-05,2]
[351619877,1738667443039,-574.13,9.035e-05,2]
[351619878,1738667443048,-500.0,9.035e-05,2]
[351619879,1738667443058,-500.0,9.035e-05,2]
[351619880,1738667443067,-500.0,9.035e-05,2]
[351619881,1738667443076,-500.0,9.035e-05,2]
[351619882,1738667443085,-562.82,9.035e-05,2]
[351619883,1738667443094,-581.83,9.035e-05,2]
[351619884,1738667443103,-500.0,9.035e-05,2]
[351619885,1738667443112,-362.21719472,9.035e-05,2]
[351619886,1738667443122,-500.0,9.035e-05,2]
[351619887,1738667443131,-520.24,9.035e-05,2]
[351619888,1738667443140,-500.0,9.035e-05,2]
[351619889,1738667443150,-253.25623665,9.035e-05,2]
[351619890,1738667443159,-500.0,9.035e-05,2]
[351619891,1738667443169,-500.0,9.035e-05,2]
[351619893,1738667443179,-500.0,9.035e-05,2]
[351619894,1738667443190,-500.0,9.035e-05,2]
[351619895,1738667443199,-500.0,9.035e-05,2]
[351619896,1738667443210,-500.0,9.035e-05,2]
[351619897,1738667443220,-587.74,9.035e-05,2]
[351619899,1738667443230,-500.0,9.035e-05,2]
[351619900,1738667443241,-500.0,9.035e-05,2]
[351619901,1738667443250,-500.0,9.035e-05,2]
[351619902,1738667443260,-500.0,9.035e-05,2]
[351619904,1738667443270,-500.0,9.035e-05,2]
[351619907,1738667443279,-604.38,9.035e-05,2]
[351619910,1738667443289,-500.0,9.035e-05,2]
[351619913,1738667443299,-500.0,9.035e-05,2]
[351619916,1738667443309,-501.21051366,9.035e-05,2]
[351619918,1738667443318,-500.0,9.035e-05,2]
[351619920,1738667443328,-500.0,9.035e-05,2]
[351619922,1738667443337,-538.42843742,9.035e-05,2]
[351619924,1738667443347,-500.0,9.035e-05,2]
[351619926,1738667443356,-184.96056218,9.035e-05,2]
[351619928,1738667443366,-500.0,9.035e-05,2]
[351619930,1738667443376,-500.0,9.035e-05,2]
[351619932,1738667443386,-500.0,9.035e-05,2]
[351619933,1738667443396,-500.0,9.035e-05,2]
[351619934,1738667443405,-500.0,9.035e-05,2]
[351619935,1738667443415,-500.0,9.035e-05,2]
[351619936,1738667443424,-500.0,9.035e-05,2]
[351619937,1738667443434,-634.23200341,9.035e-05,2]
[351619938,1738667443443,-500.0,9.035e-05,2]
[351619939,1738667443453,-500.0,9.035e-05,2]
[351619940,1738667443464,-500.0,9.035e-05,2]
[351619941,1738667443474,-500.0,9.035e-05,2]
[351619942,1738667443483,-500.0,9.035e-05,2]
[351619943,1738667443495,-500.0,9.035e-05,2]
[351619944,1738667443504,-500.0,9.035e-05,2]
[351619945,1738667443516,-502.19390268,9.035e-05,2]
[351619946,1738667443526,-500.0,9.035e-05,2]
[351619947,1738667443535,-500.0,9.035e-05,2]
[351619948,1738667443545,-500.0,9.035e-05,2]
[351619949,1738667443555,-500.0,9.035e-05,2]
[351619950,1738667443564,-500.0,9.035e-05,2]
[351619951,1738667443574,-539.06122692,9.035e-05,2]
[351619952,1738667443583,-517.16,9.035e-05,2]
[351619953,1738667443595,-500.0,9.035e-05,2]
[351619954,1738667443604,-500.0,9.035e-05,2]
[351619955,1738667443614,-500.0,9.035e-05,2]
[351619956,1738667443624,-500.0,9.035e-05,2]
[351619957,1738667443634,-500.0,9.035e-05,2]
[351619958,1738667443644,-500.0,9.035e-05,2]
[351619959,1738667443654,-500.0,9.035e-05,2]
[351619960,1738667443663,-500.0,9.035e-05,2]
[351619961,1738667443673,-500.0,9.035e-05,2]
[351619962,1738667443684,-500.0,9.035e-05,2]
[351619963,1738667443693,-500.0,9.035e-05,2]
[351619964,1738667443703,-500.0,9.035e-05,2]
[351619965,1738667443716,-192.47297808,9.035e-05,2]
[351619966,1738667443726,-500.0,9.035e-05,2]
[351619967,1738667443736,-500.0,9.035e-05,2]
[351619968,1738667443746,-546.35,9.035e-05,2]
[351619969,1738667443756,-500.0,9.035e-05,2]
[351619970,1738667443766,-500.0,9.035e-05,2]
[351619971,1738667443776,-500.0,9.035e-05,2]
[351619972,1738667443786,-595.56,9.035e-05,2]
[351619973,1738667443796,-837.13,9.035e-05,2]
[351619974,1738667443806,-500.0,9.035e-05,2]
[351619975,1738667443816,-500.0,9.035e-05,2]
[351619976,1738667443826,-500.0,9.035e-05,2]
[351619977,1738667443837,-500.0,9.035e-05,2]
[351619978,1738667443847,-405.57417346,9.035e-05,2]
[351619979,1738667443856,-500.0,9.035e-05,2]
[351619980,1738667443866,-500.0,9.035e-05,2]
[351619981,1738667443876,-500.0,9.035e-05,2]
[351619982,1738667443885,-500.0,9.035e-05,2]
[351619983,1738667443895,-497.00472466,9.035e-05,2]
[351619984,1738667443904,-500.0,9.035e-05,2]
[351619985,1738667443914,-500.0,9.035e-05,2]
[351619986,1738667443924,-500.0,9.035e-05,2]
[351619987,1738667443934,-500.0,9.035e-05,2]
[351619988,1738667443943,-500.0,9.035e-05,2]
[351619989,1738667443954,-500.0,9.035e-05,2]
[351619990,1738667443964,-532.67030563,9.035e-05,2]
[351619991,1738667443975,-500.0,9.035e-05,2]
[351619992,1738667443984,-500.0,9.035e-05,2]
[351619993,1738667443995,-500.0,9.035e-05,2]
[351619994,1738667444006,-500.0,9.035e-05,2]
[351619995,1738667444016,-225.10079105,9.035e-05,2]
[351619996,1738667444026,-500.0,9.035e-05,2]
[351619997,1738667444036,-500.0,9.035e-05,2]
[351619998,1738667444045,-466.5,9.035e-05,2]
[351619999,1738667444055,-500.0,9.035e-05,2]
[351620000,1738667444065,-500.0,9.035e-05,2]
[351620001,1738667444076,-500.0,9.035e-05,2]
[351620002,1738667444087,-500.0,9.035e-05,2]
[351620003,1738667444097,-502.60233438,9.035e-05,2]
[351620004,1738667444107,-500.0,9.035e-05,2]
[351620005,1738667444117,-379.47773207,9.035e-05,2]
[351620006,1738667444127,-504.16282776,9.035e-05,2]
[351620007,1738667444137,-500.0,9.035e-05,2]
[351620008,1738667444147,-500.0,9.035e-05,2]
[351620009,1738667444157,-500.00461034,9.035e-05,2]
[351620010,1738667444167,-500.0,9.035e-05,2]
[351620011,1738667444177,-500.0,9.035e-05,2]
[351620012,1738667444186,-500.0,9.035e-05,2]
[351620013,1738667444196,-744.25,9.035e-05,2]
[351620014,1738667444207,-525.3429359,9.035e-05,2]
[351620015,1738667444217,-500.0,9.035e-05,2]
[351620016,1738667444227,-310.46092728,9.035e-05,2]
[351620017,1738667444236,-500.0,9.035e-05,2]
[351620018,1738667444245,-500.0,9.035e-05,2]
[351620019,1738667444255,-500.0,9.035e-05,2]
[351620020,1738667444265,-500.0,9.035e-05,2]
[351620021,1738667444275,-500.0,9.035e-05,2]
[351620022,1738667444285,-500.0,9.035e-05,2]
[351620023,1738667444295,-500.0,9.035e-05,2]
[351620024,1738667444304,-500.0,9.035e-05,2]
[351620025,1738667444315,-500.0,9.035e-05,2]
[351620026,1738667444324,-500.0,9.035e-05,2]
[351620027,1738667444334,-500.0,9.035e-05,2]
[351620028,1738667444344,-500.0,9.035e-05,2]
[351620029,1738667444354,-530.10131596,9.035e-05,2]
[351620030,1738667444364,-500.0,9.035e-05,2]
[351620031,1738667444374,-500.0,9.035e-05,2]
[351620032,1738667444384,-500.0,9.035e-05,2]
[351620033,1738667444395,-501.98235384,9.035e-05,2]
[351620034,1738667444405,-500.0,9.035e-05,2]
[351620035,1738667444415,-500.0,9.035e-05,2]
[351620036,1738667444426,-500.0,9.035e-05,2]
[351620037,1738667444436,-500.0,9.035e-05,2]
[351620038,1738667444446,-500.0,9.035e-05,2]
[351620039,1738667444458,-500.0,9.035e-05,2]
[351620040,1738667444469,-500.0,9.035e-05,2]
[351620041,1738667444479,-500.0,9.035e-05,2]
[351620042,1738667444489,-500.0,9.035e-05,2]
[351620043,1738667444499,-500.0,9.035e-05,2]
[351620044,1738667444515,-500.0,9.035e-05,2]
[351620045,1738667444525,-500.0,9.035e-05,2]
[351620046,1738667444536,-500.0,9.035e-05,2]
[351620047,1738667444546,-502.59084616,9.035e-05,2]
[351620048,1738667444557,-500.0,9.035e-05,2]
[351620049,1738667444568,-500.0,9.035e-05,2]
[351620050,1738667444578,-500.0,9.035e-05,2]
[351620051,1738667444591,-500.0,9.035e-05,2]
[351620052,1738667444603,-500.0,9.035e-05,2]
[351620053,1738667444613,-500.0,9.035e-05,2]
[351620054,1738667444623,-500.0,9.035e-05,2]
[351620055,1738667444633,-307.42057673,9.035e-05,2]
[351620056,1738667444643,-641.67244202,9.035e-05,2]
[351620057,1738667444653,-614.69283984,9.035e-05,2]
[351620058,1738667444663,-307.47864754,9.035e-05,2]
[351620059,1738667444674,-500.0,9.035e-05,2]
[351620060,1738667444683,-500.0,9.035e-05,2]
[351620061,1738667444693,-500.0,9.035e-05,2]
[351620062,1738667444703,-500.0,9.035e-05,2]
[351620063,1738667444719,-518.9,9.035e-05,2]
[351620064,1738667444729,-500.0,9.035e-05,2]
[351620065,1738667444739,-500.0,9.035e-05,2]
[351620066,1738667444749,-500.0,9.035e-05,2]
[351620067,1738667444759,-607.74,9.035e-05,2]
[351620068,1738667444769,-500.0,9.035e-05,2]
[351620069,1738667444779,-500.0,9.035e-05,2]
[351620070,1738667444790,-610.12,9.035e-05,2]
[351620071,1738667444800,-500.0,9.035e-05,2]
[351620072,1738667444809,-500.0,9.035e-05,2]
[351620073,1738667444820,-500.0,9.035e-05,2]
[351620074,1738667444829,-500.0,9.035e-05,2]
[351620075,1738667444839,-500.0,9.035e-05,2]
[351620076,1738667444849,-559.08,9.035e-05,2]
[351620077,1738667444859,-500.0,9.035e-05,2]
[351620078,1738667444868,-500.0,9.035e-05,2]
[351620079,1738667444878,-500.0,9.035e-05,2]
[351620080,1738667444888,-500.0,9.035e-05,2]
[351620081,1738667444898,-500.0,9.035e-05,2]
[351620082,1738667444908,-170.83720456,9.035e-05,2]
[351620083,1738667444918,-500.0,9.035e-05,2]
[351620084,1738667444928,-500.0,9.035e-05,2]
[351620085,1738667444938,-500.0,9.035e-05,2]
[351620086,1738667444948,-397.33281219,9.035e-05,2]
[351620087,1738667444961,-500.0,9.035e-05,2]
[351620088,1738667444971,-500.0,9.035e-05,2]
[351620089,1738667444981,-582.56,9.035e-05,2]
[351620090,1738667444991,-500.0,9.035e-05,2]
[351620091,1738667445001,-500.0,9.035e-05,2]
[351620092,1738667445011,-500.0,9.035e-05,2]
[351620093,1738667445021,-500.0,9.035e-05,2]
[351620094,1738667445031,-500.0,9.035e-05,2]
[351620095,1738667445040,-500.0,9.035e-05,2]
[351620096,1738667445050,-500.0,9.035e-05,2]
[351620097,1738667445060,-628.3,9.035e-05,2]
[351620098,1738667445070,-500.0,9.035e-05,2]
[351620099,1738667445079,-500.0,9.035e-05,2]
[351620100,1738667445090,-500.0,9.035e-05,2]
[351620101,1738667445100,-500.0,9.035e-05,2]
[351620102,1738667445111,-500.0,9.035e-05,2]
[351620103,1738667445122,-500.0,9.035e-05,2]
[351620104,1738667445131,-500.0,9.035e-05,2]
[351620105,1738667445142,-500.0,9.035e-05,2]
[351620106,1738667445151,-500.0,9.035e-05,2]
[351620107,1738667445161,-500.0,9.035e-05,2]
[351620108,1738667445171,-500.0,9.035e-05,2]
[351620109,1738667445181,-273.38703066,9.035e-05,2]
[351620110,1738667445190,-500.0,9.035e-05,2]
[351620111,1738667445200,-500.0,9.035e-05,2]
[351620112,1738667445212,-500.0,9.035e-05,2]
[351620113,1738667445221,-500.0,9.035e-05,2]
[351620114,1738667445231,-500.0,9.035e-05,2]
[351620115,1738667445240,-500.0,9.035e-05,2]
[351620116,1738667445249,-500.0,9.035e-05,2]
[351620117,1738667445259,-500.0,9.035e-05,2]
[351620118,1738667445268,-500.0,9.035e-05,2]
[351620119,1738667445278,-532.69,9.035e-05,2]
[351620120,1738667445288,-255.07661263,9.035e-05,2]
[351620121,1738667445298,-500.0,9.035e-05,2]
[351620122,1738667445308,-500.0,9.035e-05,2]
[351620123,1738667445317,-500.0,9.035e-05,2]
[351620124,1738667445327,-500.0,9.035e-05,2]
[351620125,1738667445336,-500.0,9.035e-05,2]
[351620126,1738667445346,-500.0,9.035e-05,2]
[351620127,1738667445357,-500.0,9.035e-05,2]
[351620128,1738667445367,-676.5,9.035e-05,2]
[351620129,1738667445377,-500.0,9.035e-05,2]
[351620131,1738667445387,-500.0,9.035e-05,2]
[351620132,1738667445398,-500.0,9.035e-05,2]
[351620133,1738667445408,-650.5,9.035e-05,2]
[351620134,1738667445418,-500.0,9.035e-05,2]
[351620136,1738667445699,-500.0,9.035e-05,2]
[351620137,1738667445723,-500.0,9.035e-05,2]
[351620138,1738667445733,-500.0,9.035e-05,2]
[351620139,1738667445742,-513.33666516,9.035e-05,2]
[351620140,1738667445752,-500.0,9.035e-05,2]
[351620141,1738667445761,-502.32439419,9.035e-05,2]
[351620142,1738667445771,-500.0,9.035e-05,2]
[351620143,1738667445780,-500.0,9.035e-05,2]
[351620144,1738667445790,-500.0,9.035e-05,2]
[351620145,1738667445800,-500.0,9.035e-05,2]
[351620146,1738667445809,-500.0,9.035e-05,2]
[351620147,1738667445819,-500.0,9.035e-05,2]
[351620148,1738667445828,-500.0,9.035e-05,2]
[351620149,1738667445838,-500.0,9.035e-05,2]
[351620150,1738667445848,-500.0,9.035e-05,2]
[351620151,1738667445857,-500.0,9.035e-05,2]
[351620152,1738667445867,-608.64,9.035e-05,2]
[351620153,1738667445877,-500.0,9.035e-05,2]
[351620154,1738667445886,-500.0,9.035e-05,2]
[351620155,1738667445897,-500.0,9.035e-05,2]
[351620156,1738667445907,-502.11620038,9.035e-05,2]
[351620157,1738667445917,-500.0,9.035e-05,2]
[351620158,1738667445927,-500.0,9.035e-05,2]
[351620159,1738667445937,-500.0,9.035e-05,2]
[351620160,1738667445947,-500.0,9.035e-05,2]
[351620161,1738667445959,-1034.12,9.035e-05,2]
[351620162,1738667445968,-314.05078516,9.035e-05,2]
[351620163,1738667445978,-500.0,9.035e-05,2]
[351620164,1738667445988,-500.0,9.035e-05,2]
[351620165,1738667445998,-500.0,9.035e-05,2]
[351620166,1738667446009,-500.0,9.035e-05,2]
[351620167,1738667446020,-500.0,9.035e-05,2]
[351620168,1738667446030,-500.0,9.035e-05,2]
[351620169,1738667446040,-500.0,9.035e-05,2]
[351620170,1738667446050,-500.0,9.035e-05,2]
[351620171,1738667446059,-500.0,9.035e-05,2]
[351620172,1738667446069,-500.0,9.035e-05,2]
[351620173,1738667446078,-500.0,9.035e-05,2]
[351620174,1738667446088,-500.0,9.035e-05,2]
[351620175,1738667446099,-500.0,9.035e-05,2]
[351620176,1738667446109,-500.0,9.035e-05,2]
[351620177,1738667446119,-500.0,9.035e-05,2]
[351620178,1738667446129,-501.52645156,9.035e-05,2]
[351620179,1738667446139,-500.0,9.035e-05,2]
[351620180,1738667446149,-500.0,9.035e-05,2]
[351620181,1738667446159,-629.6,9.035e-05,2]
[351620182,1738667446170,-500.0,9.035e-05,2]
[351620183,1738667446181,-500.0,9.035e-05,2]
[351620184,1738667446190,-500.0,9.035e-05,2]
[351620185,1738667446201,-500.0,9.035e-05,2]
[351620186,1738667446213,-591.63,9.035e-05,2]
[351620187,1738667446224,-500.0,9.035e-05,2]
[351620188,1738667446235,-500.0,9.035e-05,2]
[351620189,1738667446246,-500.0,9.035e-05,2]
[351620190,1738667446256,-500.0,9.035e-05,2]
[351620191,1738667446267,-504.55000133,9.035e-05,2]
[351620192,1738667446277,-500.0,9.035e-05,2]
[351620193,1738667446287,-500.0,9.035e-05,2]
[351620194,1738667446296,-500.0,9.035e-05,2]
[351620195,1738667446307,-499.04798393,9.035e-05,2]
[351620196,1738667446317,-500.0,9.035e-05,2]
[351620197,1738667446326,-500.0,9.035e-05,2]
[351620198,1738667446336,-686.49,9.035e-05,2]
[351620199,1738667446346,-500.0,9.035e-05,2]
[351620200,1738667446356,-514.54,9.035e-05,2]
[351620201,1738667446365,-500.0,9.035e-05,2]
[351620202,1738667446375,-627.41,9.035e-05,2]
[351620203,1738667446385,-536.62458695,9.035e-05,2]
[351620204,1738667446395,-502.250007,9.035e-05,2]
[351620205,1738667446405,-500.0,9.035e-05,2]
[351620206,1738667446415,-500.0,9.035e-05,2]
[351620207,1738667446425,-936.6,9.035e-05,2]
[351620208,1738667446436,-500.0,9.035e-05,2]
[351620209,1738667446447,-500.0,9.035e-05,2]
[351620210,1738667446460,-500.0,9.035e-05,2]
[351620211,1738667446470,-500.0,9.035e-05,2]
[351620212,1738667446479,-657.01,9.035e-05,2]
[351620213,1738667446489,-901.83,9.035e-05,2]
[351620214,1738667446499,-500.0,9.035e-05,2]
[351620215,1738667446511,-1347.54,9.035e-05,2]
[351620216,1738667446524,-500.0,9.035e-05,2]
[351620217,1738667446535,-500.0,9.035e-05,2]
[351620218,1738667446544,-500.0,9.035e-05,2]
[351620219,1738667446554,-500.0,9.035e-05,2]
[351620220,1738667446565,-500.0,9.035e-05,2]
[351620221,1738667446575,-500.0,9.035e-05,2]
[351620222,1738667446585,-1899.94,9.035e-05,2]
[351620223,1738667446596,-821.28,9.035e-05,2]
[351620224,1738667446606,-500.0,9.035e-05,2]
[351620225,1738667446616,-766.46,9.035e-05,2]
[351620226,1738667446626,-500.0,9.035e-05,2]
[351620227,1738667446637,-500.0,9.035e-05,2]
[351620228,1738667446647,-500.0,9.035e-05,2]
[351620229,1738667446657,-548.84,9.035e-05,2]
[351620231,1738667446668,-500.0,9.035e-05,2]
[351620232,1738667446680,-1067.5,9.035e-05,2]
[351620233,1738667446691,-567.98,9.035e-05,2]
[351620234,1738667446702,-340.22722023,9.035e-05,2]
[351620235,1738667447131,-500.0,8.898e-05,2]
[351620236,1738667447141,-866.13277977,9.035e-05,2]
[351620237,1738667447151,-500.0,9.035e-05,2]
[351620238,1738667447164,-500.0,9.035e-05,2]
[351620239,1738667447174,-789.24,9.035e-05,2]
[351620240,1738667447183,-719.05,9.035e-05,2]
[351620241,1738667447193,-500.0,9.035e-05,2]
[351620242,1738667447203,-1125.83,9.035e-05,2]
[351620243,1738667447215,-500.0,9.035e-05,2]